[Event "World Chess Trophy 2018"]
[Site "Tenerife"]
[Date "2018.06.17"]
[Round "2"]
[White "Steiner, Juraj"]
[Black "Kraus, Oliver"]
[Result "1/2-1/2"]
[ECO "D14"]
[WhiteElo "2001"]
[BlackElo "2044"]
[Annotator "NA RC"]
[PlyCount "126"]
[EventDate "2018.06.17"]
[EventType "swiss"]
[EventCountry "ESP"]
[SourceTitle "playchess.com"]
[Source "ChessBase"]
[SourceQuality "1"]
[TimeControl "5400+30"]

{[%evp 44,126,-68,-93,-51,-43,-35,-57,-42,-34,-63,-84,-82,-87,-30,-29,-31,32767,97,32767,32767,32767,111,32767,32767,129,133,32767,32767,32767,32767,32767,32767,60,46,32767,85,32767,32767,92,73,97,45,92,97,80,97,68,80,45,80,80,80,80,80,80,80,80,295,295,295,295,12829,12834,12835,114,114,114,114,114,114,114,114,72,114,72,114,72,72,114,72,114,72,114,72]} 1. d4 {[%emt 0:00:00]} d5 {[%emt 0:02:56]} 2. c4 {[%emt 0:00:02]} c6 {[%emt 0:00:21]} 3. cxd5 {[%emt 0:00:17]} cxd5 {[%emt 0:00:14]} 4. Nc3 {[%emt 0:00:17]} Nf6 {[%emt 0:00:22]} 5. Bf4 {[%emt 0:00:52]} Nc6 {[%emt 0:00:39]} 6. e3 {[%emt 0:00:37]} Bf5 {[%emt 0:00:38]} 7. Nf3 {[%emt 0:07:52]} e6 {[%emt 0:00:30]} 8. Be2 {[%emt 0:01:08]} Bd6 {[%emt 0:10:02]} 9. Bg3 {[%emt 0:00:58] D14: Slav Defence: Exchange variation with ...Bf5} (9. Bxd6 Qxd6 10. O-O O-O 11. Rc1 Rfc8 12. a3 Nd7 13. Na4 h6 14. b4 a5 15. b5 Ne7 16. Qb3 Rxc1 17. Rxc1 Rc8 18. Rxc8+ Nxc8 {0-1 (99) Gomez,J (2463)-Pourramezanali,A (2534) Ashkhabad 2017}) 9... O-O {[%emt 0:03:32]} 10. Nh4 {[%emt 0:00:55]} Bxg3 $146 {[%emt 0:04:58]} ({Predecessor:} 10... Bg6 11. Nxg6 hxg6 12. O-O Ne8 13. Rc1 Rc8 14. Na4 Bxg3 15. hxg3 Nd6 16. Nc5 b6 {½-½ (73) Ungurs,K (2024)-Paszewski,M (2291) St Petersburg 2016}) 11. hxg3 {[%emt 0:00:19]} Bg6 {[%emt 0:01:42]} 12. Nxg6 {[%emt 0:07:28]} hxg6 {[%emt 0:01:28]} 13. f4 {[%emt 0:06:24]} Rc8 {[%emt 0:07:33]} 14. Rc1 {[%emt 0:13:15]} Qb6 {[%emt 0:09:16]} 15. Qb3 {[%emt 0:36:04]} Qxb3 {[%emt 0:07:59]} 16. axb3 {[%emt 0:02:42]} Na5 {[%emt 0:03:09]} 17. Ra1 {[%emt 0:00:36]} Nc6 {[%emt 0:03:29]} 18. O-O {[%emt 0:01:19]} a6 {[%emt 0:00:16]} 19. g4 {[%emt 0:00:43]} Nb4 {[%emt 0:00:43]} 20. g5 {[%emt 0:00:12]} Ne4 {[%emt 0:01:47]} 21. Nxe4 {[%emt 0:02:02]} dxe4 {[%emt 0:00:58]} 22. Rac1 {[%emt 0:03:53]} b5 {[%emt 0:13:21]} 23. Kf2 {[%emt 0:03:06]} Rfd8 {[%emt 0:01:22]} 24. Rfd1 {[%emt 0:01:47]} Kf8 {[%emt 0:00:49]} 25. Ke1 {[%emt 0:01:05]} Ke7 {[%emt 0:01:41]} 26. Kd2 {[%emt 0:00:20]} Kd7 {[%emt 0:01:03]} 27. Bf1 {[%emt 0:02:11]} (27. Rc3 $11 {bleibt in der Remisbreite.}) 27... Rxc1 {[%emt 0:01:17]} 28. Rxc1 {[%emt 0:00:12]} Rc8 {[%emt 0:00:10]} 29. Rxc8 {[%emt 0:00:13]} Kxc8 {[%emt 0:00:20]} 30. g4 {[%emt 0:00:13]} Kc7 {[%emt 0:18:32]} (30... f6 $11 {remains equal.}) 31. Bg2 {[%emt 0:00:11]} f5 {[%emt 0:03:31]} 32. gxf6 {[%emt 0:00:17]} gxf6 {[%emt 0:00:04]} 33. Bxe4 {[%emt 0:03:01]} f5 {[%emt 0:01:17]} 34. Bf3 {[%emt 0:00:42]} Kd6 {[%emt 0:00:44]} 35. gxf5 {[%emt 0:02:25]} gxf5 {[%emt 0:00:07]} 36. Kc3 {[%emt 0:00:36]} Na2+ {[%emt 0:00:32]} 37. Kd2 {[%emt 0:00:46]} Nb4 {[%emt 0:00:34]} 38. e4 {[%emt 0:00:34]} fxe4 {[%emt 0:00:52]} 39. Bxe4 {[%emt 0:00:10]} a5 {[%emt 0:00:21]} 40. Ke3 {[%emt 0:00:53]} Na6 {[%emt 0:00:29]} 41. Bd3 {[%emt 0:00:43]} Nc7 {[%emt 0:00:11]} 42. Ke4 {[%emt 0:00:28]} b4 $1 {[%emt 0:00:42]} 43. Bc4 {[%emt 0:00:11]} Ne8 {[%emt 0:00:18]} 44. f5 {[%emt 0:00:29]} Nf6+ {[%emt 0:00:49]} 45. Kf4 {[%emt 0:00:10]} exf5 {[%emt 0:00:24]} 46. Kxf5 {[%emt 0:00:12]} Nd5 {[%emt 0:00:48]} 47. Ke4 {[%emt 0:00:49]} Nb6 {[%emt 0:00:26]} 48. Kd3 {[%emt 0:00:28]} Nd7 {[%emt 0:00:34]} 49. Bg8 {[%emt 0:00:31]} Nb6 {[%emt 0:00:07]} 50. Bh7 {[%emt 0:00:23]} a4 $2 {[%emt 0:00:50]} (50... Kd5 $16) 51. bxa4 {[%emt 0:02:13]} Nxa4 {[%emt 0:00:04]} 52. b3 {[%emt 0:00:33]} Nb6 $2 {[%emt 0:00:42] [#]} (52... Nc3 53. Kc4 Ne2) 53. Bg8 $1 {[%emt 0:00:21]} Kc6 {[%emt 0:00:28]} 54. Ke3 $2 {[%emt 0:00:17]} (54. Ke4 $18 {is the precise move to win.} Kc7 55. d5) 54... Kd6 {[%emt 0:00:17]} 55. Ke4 {[%emt 0:00:13]} Nd7 {[%emt 0:00:16]} 56. Kd3 {[%emt 0:01:08]} Nb6 {[%emt 0:00:06]} 57. Bf7 {[%emt 0:00:38]} Ke7 {[%emt 0:00:53]} 58. Bh5 {[%emt 0:00:13]} Kd6 {[%emt 0:00:08]} 59. Bg4 {[%emt 0:00:20]} Ke7 {[%emt 0:00:23]} 60. Bf3 {[%emt 0:01:24]} Kd6 {[%emt 0:00:13]} 61. Bb7 {[%emt 0:01:02]} Kc7 {[%emt 0:00:22]} 62. Ba6 {[%emt 0:00:19]} Kd6 {[%emt 0:00:04]} 63. Ke4 {[%emt 0:00:34]} Nd5 $16 {[%emt 0:00:31]} 1/2-1/2

[Event "World Chess Trophy 2018"]
[Site "Tenerife"]
[Date "2018.06.17"]
[Round "2"]
[White "Aledo Yanguas, David"]
[Black "Baete, Guy"]
[Result "1/2-1/2"]
[ECO "B07"]
[WhiteElo "1986"]
[BlackElo "1861"]
[Annotator "NA RC"]
[PlyCount "160"]
[EventDate "2018.06.17"]
[EventType "swiss"]
[EventCountry "ESP"]
[SourceTitle "playchess.com"]
[Source "ChessBase"]
[SourceQuality "1"]
[TimeControl "5400+30"]

1. e4 {[%emt 0:00:00]} d6 {[%emt 0:00:15]} 2. d4 {[%emt 0:00:00]} e5 {[%emt 0:00:06]} 3. dxe5 {[%emt 0:00:00]} dxe5 {[%emt 0:00:04]} 4. Qxd8+ {[%emt 0:00:00]} Kxd8 {[%emt 0:00:03]} 5. Bc4 {[%emt 0:00:00]} Be6 {[%emt 0:00:08]} 6. Bxe6 {[%emt 0:00:00]} fxe6 {[%emt 0:00:02]} 7. Nc3 {[%emt 0:00:12]} c6 {[%emt 0:00:18]} 8. Be3 {[%emt 0:01:14]} Bd6 {[%emt 0:03:11]} 9. Nf3 {[%emt 0:00:28]} Nf6 {[%emt 0:03:54]} 10. O-O-O {[%emt 0:01:02]} Ke7 {[%emt 0:03:58]} 11. Rd3 {[%emt 0:02:30] B07: Pirc Defence: Miscellaneous Systems} Nbd7 {[%emt 0:00:26]} 12. Rhd1 {[%emt 0:00:55]} Bc7 {[%emt 0:00:50]} 13. Nd2 {[%emt 0:04:27]} (13. Na4 b6 14. Rc3 c5 15. Nd2 Rac8 16. a3 Nb8 17. b4 cxb4 18. axb4 Bd6 {½-½ (50) Landa,K (2639)-Shahinyan,D (2362) Loo 2014}) 13... Bb6 $146 {[%emt 0:01:32]} ({Predecessor:} 13... b5 14. Nb3 Bb6 15. Bg5 Rhd8 16. Rg3 Kf7 17. Rf3 a5 18. a4 b4 {½-½ (34) Tsereteli,T (2243)-Nikoladze,S (2231) Tbilisi 2002}) 14. Nc4 {[%emt 0:03:01]} Bxe3+ {[%emt 0:00:45]} 15. Rxe3 {[%emt 0:00:19]} g6 {[%emt 0:16:48]} 16. Na5 {[%emt 0:02:14]} Rab8 {[%emt 0:00:12]} 17. Na4 {[%emt 0:00:11]} Rhc8 {[%emt 0:01:41]} 18. f3 {[%emt 0:00:45]} b6 {[%emt 0:09:04]} 19. Nb3 {[%emt 0:00:19]} Rd8 {[%emt 0:04:02]} 20. Red3 {[%emt 0:02:06]} Nf8 {[%emt 0:00:16]} 21. c4 {[%emt 0:00:53]} Rxd3 {[%emt 0:00:04]} 22. Rxd3 {[%emt 0:00:04]} Rd8 {[%emt 0:00:52]} 23. Kc2 {[%emt 0:00:40]} Rxd3 {[%emt 0:03:04]} 24. Kxd3 {[%emt 0:00:08]} g5 {[%emt 0:02:58]} 25. c5 {[%emt 0:01:05]} N8d7 {[%emt 0:00:42]} 26. cxb6 {[%emt 0:07:20]} axb6 {[%emt 0:00:09]} 27. Kc3 {[%emt 0:00:13]} g4 {[%emt 0:00:02]} 28. Kb4 {[%emt 0:00:21]} h5 {[%emt 0:01:08]} 29. Nc3 {[%emt 0:02:31]} h4 {[%emt 0:04:58]} 30. a4 {[%emt 0:01:51]} h3 {[%emt 0:01:44]} 31. gxh3 {[%emt 0:00:17]} gxf3 {[%emt 0:00:13]} 32. Nd2 {[%emt 0:00:41]} f2 {[%emt 0:01:00]} 33. a5 {[%emt 0:00:34]} bxa5+ {[%emt 0:00:02]} 34. Kc4 {[%emt 0:00:14]} Nh5 {[%emt 0:03:55]} 35. Nd1 {[%emt 0:00:24]} Kd6 {[%emt 0:00:31]} 36. Nxf2 {[%emt 0:00:37]} Nb6+ {[%emt 0:00:02]} 37. Kc3 {[%emt 0:01:11]} Na4+ {[%emt 0:03:10]} 38. Kb3 {[%emt 0:00:10]} Nc5+ {[%emt 0:00:09]} 39. Kc4 {[%emt 0:00:08]} Na4 {[%emt 0:01:53]} 40. b4 {[%emt 0:00:59]} Nb6+ {[%emt 0:03:08]} 41. Kc3 {[%emt 0:01:28]} axb4+ {[%emt 0:01:11]} 42. Kxb4 {[%emt 0:00:07]} Nd7 {[%emt 0:05:40]} 43. Nd3 {[%emt 0:01:41]} Ke7 {[%emt 0:01:25]} 44. Nc5 {[%emt 0:02:43]} Nf4 {[%emt 0:02:35]} 45. h4 {[%emt 0:00:37]} Nf6 {[%emt 0:01:29]} 46. Nf3 {[%emt 0:01:06]} Ng6 {[%emt 0:01:30]} 47. h3 {[%emt 0:02:06]} Nh5 {[%emt 0:01:55]} 48. Nd3 {[%emt 0:01:10]} Kd6 {[%emt 0:00:55]} 49. Ng5 {[%emt 0:00:45]} Nxh4 {[%emt 0:02:43]} 50. Nf7+ {[%emt 0:00:22]} Ke7 {[%emt 0:00:52]} 51. Nfxe5 {[%emt 0:00:26]} Nf6 {[%emt 0:00:33]} 52. Nxc6+ {[%emt 0:01:34]} Kf7 {[%emt 0:02:38]} 53. Nc5 {[%emt 0:01:09]} Nf3 {[%emt 0:02:29]} 54. Kc4 {[%emt 0:01:45]} Ng1 {[%emt 0:01:58]} 55. Ne5+ {[%emt 0:01:41]} Kg8 {[%emt 0:00:35]} 56. h4 {[%emt 0:00:18]} Ne2 {[%emt 0:01:44]} 57. Nc6 {[%emt 0:00:45]} Nf4 {[%emt 0:01:50]} 58. e5 {[%emt 0:02:47]} N6h5 {[%emt 0:01:08]} 59. Kd4 {[%emt 0:04:33]} Ng6 {[%emt 0:01:48]} 60. Nxe6 {[%emt 0:00:13]} Nxh4 {[%emt 0:00:04]} 61. Ng5 {[%emt 0:00:52]} Kg7 {[%emt 0:01:27]} 62. Ne7 {[%emt 0:03:14]} Kf8 $11 {[%emt 0:00:34]} 63. Nd5 {[%emt 0:00:53]} Ng7 {[%emt 0:01:03]} 64. Nf4 {[%emt 0:00:49]} Ke7 {[%emt 0:00:35]} 65. Kc5 {[%emt 0:00:36]} Nhf5 {[%emt 0:01:40]} 66. Ng6+ {[%emt 0:00:37]} Kd7 {[%emt 0:00:26]} 67. Nf4 {[%emt 0:00:57]} Ke7 {[%emt 0:00:21]} 68. Kc6 {[%emt 0:00:27]} Nd4+ {[%emt 0:00:15]} 69. Kb7 {[%emt 0:00:49]} Nde6 {[%emt 0:00:40]} 70. Nd5+ {[%emt 0:00:15]} Kd7 {[%emt 0:00:19]} 71. Ne4 {[%emt 0:02:01]} Nf5 {[%emt 0:02:50]} 72. Ndf6+ {[%emt 0:01:54]} Ke7 {[%emt 0:00:11]} 73. Kc8 {[%emt 0:00:29]} Neg7 {[%emt 0:00:31]} 74. Nc5 {[%emt 0:01:05]} Nd6+ {[%emt 0:00:50]} 75. Kc7 {[%emt 0:00:35]} Nde8+ {[%emt 0:00:08]} 76. Nxe8 {[%emt 0:00:15]} Nxe8+ {[%emt 0:00:04]} 77. Kc6 {[%emt 0:00:22]} Nf6 {[%emt 0:00:15]} 78. Kc7 {[%emt 0:01:07]} Nd5+ {[%emt 0:00:08]} 79. Kb7 {[%emt 0:00:45]} Nf4 {[%emt 0:00:26]} 80. Kc6 {[%emt 0:00:31]} Ng6 {[%emt 0:00:06]} 1/2-1/2

[Event "World Chess Trophy 2018"]
[Site "Tenerife"]
[Date "2018.06.17"]
[Round "2"]
[White "Ciampi, Vincenzo"]
[Black "Mamani Beltran, Daniel"]
[Result "0-1"]
[ECO "D78"]
[WhiteElo "1959"]
[BlackElo "1623"]
[Annotator "NA RC"]
[PlyCount "60"]
[EventDate "2018.06.17"]
[EventType "swiss"]
[EventCountry "ESP"]
[SourceTitle "playchess.com"]
[Source "ChessBase"]
[SourceQuality "1"]
[TimeControl "5400+30"]

1. Nf3 {[%emt 0:00:00]} d5 {[%emt 0:00:25]} 2. g3 {[%emt 0:00:11]} Nf6 {[%emt 0:00:23]} 3. Bg2 {[%emt 0:00:06]} g6 {[%emt 0:00:31]} 4. O-O {[%emt 0:00:11]} Bg7 {[%emt 0:00:05]} 5. d4 {[%emt 0:00:12]} O-O {[%emt 0:00:19]} 6. Ne5 {[%emt 0:00:15]} Nbd7 {[%emt 0:01:10]} 7. c4 {[%emt 0:00:27]} c6 {[%emt 0:00:29]} 8. cxd5 {[%emt 0:02:03]} Nxe5 {[%emt 0:00:44]} 9. dxe5 {[%emt 0:00:56]} Nxd5 {[%emt 0:00:09]} 10. f4 {[%emt 0:06:06]} Qb6+ {[%emt 0:02:07]} 11. Kh1 {[%emt 0:00:25]} Rd8 {[%emt 0:04:34]} 12. Qb3 {[%emt 0:04:38]} Bg4 {[%emt 0:04:59]} 13. Bxd5 {[%emt 0:03:23]} cxd5 {[%emt 0:05:41]} 14. Qxb6 {[%emt 0:15:09]} axb6 {[%emt 0:00:14]} 15. Re1 {[%emt 0:01:06]} Rac8 {[%emt 0:00:21]} 16. Na3 {[%emt 0:02:15]} f6 {[%emt 0:00:53]} 17. Be3 {[%emt 0:17:56]} fxe5 {[%emt 0:05:12]} 18. Bxb6 {[%emt 0:03:06]} Rd6 {[%emt 0:02:51]} 19. Be3 {[%emt 0:01:29]} exf4 {[%emt 0:00:17]} 20. Bxf4 {[%emt 0:00:45]} Rb6 {[%emt 0:00:15]} 21. Rad1 {[%emt 0:20:12]} Bxb2 {[%emt 0:00:29]} 22. Nb1 {[%emt 0:00:44]} e5 {[%emt 0:00:46]} 23. Bg5 {[%emt 0:01:40]} d4 {[%emt 0:01:26]} 24. Rd3 {[%emt 0:12:20]} e4 {[%emt 0:02:49]} 25. Rb3 {[%emt 0:00:20]} Rxb3 {[%emt 0:00:08]} 26. axb3 {[%emt 0:00:06]} Rc2 {[%emt 0:00:05]} 27. Kg1 {[%emt 0:05:55]} Rxe2 {[%emt 0:00:49]} 28. Rxe2 {[%emt 0:00:18]} Bxe2 {[%emt 0:00:20]} 29. Kf2 {[%emt 0:00:21]} Bd3 {[%emt 0:00:05]} 30. Nd2 {[%emt 0:01:15]} e3+ {[%emt 0:00:07]} 0-1

[Event "World Chess Trophy 2018"]
[Site "Tenerife"]
[Date "2018.06.17"]
[Round "2"]
[White "Pirrello, Christian"]
[Black "Harstad, Christian"]
[Result "1-0"]
[ECO "A30"]
[WhiteElo "1935"]
[BlackElo "1985"]
[Annotator "NA"]
[PlyCount "107"]
[EventDate "2018.06.17"]
[EventType "swiss"]
[EventCountry "ESP"]
[SourceTitle "playchess.com"]
[Source "ChessBase"]
[SourceQuality "1"]
[TimeControl "5400+30"]

1. Nf3 {[%emt 0:00:00]} c5 {[%emt 0:00:07]} 2. b3 {[%emt 0:00:00]} Nf6 {[%emt 0:02:05]} 3. Bb2 {[%emt 0:00:03]} g6 {[%emt 0:00:16]} 4. g3 {[%emt 0:00:14]} b6 {[%emt 0:00:29]} 5. Bg2 {[%emt 0:00:06]} Bb7 {[%emt 0:00:13]} 6. O-O {[%emt 0:00:10]} Bg7 {[%emt 0:00:20]} 7. c4 {[%emt 0:00:20]} O-O {[%emt 0:01:22]} 8. Nc3 {[%emt 0:00:36]} d6 {[%emt 0:06:14]} 9. d4 {[%emt 0:00:58]} cxd4 {[%emt 0:01:20]} 10. Nxd4 {[%emt 0:00:20]} Bxg2 {[%emt 0:00:37]} 11. Kxg2 {[%emt 0:00:12]} Qc7 {[%emt 0:01:26] A30: Symmetrical English: Double Fianchetto and Hedgehog} (11... Qc8 12. e4 Qb7 13. f3 Nbd7 14. Qe2 Rfe8 15. Rfd1 a6 16. Rab1 Rac8 17. a4 e6 18. Kg1 d5 19. e5 Nh5 20. f4 dxc4 21. Ne4 Bf8 22. bxc4 {0-1 (41) Korotylev,A (2573)-Dubov,D (2666) Sochi 2017}) 12. e4 {[%emt 0:01:13]} Nbd7 {[%emt 0:01:34]} 13. Nd5 {[%emt 0:01:39]} Nxd5 {[%emt 0:09:52]} 14. cxd5 {[%emt 0:00:46]} Qb7 {[%emt 0:03:29]} 15. Qd2 $146 {[%emt 0:00:53]} ({Predecessor:} 15. Qe2 Rfe8 16. b4 a6 17. a4 e6 18. dxe6 fxe6 19. Rfc1 {1-0 (74) Galindo,R (2270)-Moravich Casais,J Buenos Aires 1991}) 15... Nc5 {[%emt 0:07:14]} 16. f3 {[%emt 0:01:01]} a5 {[%emt 0:06:37]} 17. Ne2 {[%emt 0:03:12]} Bxb2 {[%emt 0:05:05]} 18. Qxb2 {[%emt 0:00:19]} b5 {[%emt 0:00:32]} 19. Nf4 {[%emt 0:04:32]} b4 {[%emt 0:02:59]} 20. Rfd1 {[%emt 0:03:26]} a4 {[%emt 0:02:33]} 21. Nd3 {[%emt 0:02:26]} Nxd3 {[%emt 0:06:49]} 22. Rxd3 {[%emt 0:00:16]} Rfc8 {[%emt 0:00:30]} 23. bxa4 {[%emt 0:00:50]} Rxa4 {[%emt 0:01:58]} 24. Rdd1 {[%emt 0:04:15]} Rc5 {[%emt 0:04:57]} 25. Rdc1 {[%emt 0:00:38]} Qc7 {[%emt 0:01:40]} 26. Rxc5 {[%emt 0:00:34]} dxc5 {[%emt 0:03:54]} 27. e5 {[%emt 0:04:10]} c4 {[%emt 0:01:07]} 28. Qd4 {[%emt 0:00:29]} b3 {[%emt 0:06:23]} 29. d6 {[%emt 0:01:46]} exd6 {[%emt 0:02:31]} 30. exd6 {[%emt 0:00:23]} Qa7 {[%emt 0:02:48]} 31. Qd5 {[%emt 0:04:23]} Rxa2+ {[%emt 0:07:29]} 32. Rxa2 {[%emt 0:00:22]} bxa2 {[%emt 0:01:56]} 33. d7 {[%emt 0:00:49]} a1=Q {[%emt 0:01:07]} 34. d8=Q+ {[%emt 0:00:08]} Kg7 {[%emt 0:00:15]} 35. Qxc4 {[%emt 0:04:27] [#]} Q7g1+ $2 {[%emt 0:01:40]} ({Besser ist} 35... Qb2+ $1 $19 36. Kh3 Qaf2 37. Qxf7+ Kxf7 38. Qd7+ Kf6 39. Qd8+ Ke5 40. Qe7+ Kd4 41. Qe4+ Kc3 42. Qe5+ Kc2) 36. Kh3 {[%emt 0:00:15]} Qaf1+ {[%emt 0:02:28]} 37. Qxf1 {[%emt 0:00:13]} Qxf1+ {[%emt 0:00:06]} 38. Kg4 {[%emt 0:00:44]} h5+ {[%emt 0:00:53]} 39. Kf4 {[%emt 0:00:30]} Qc1+ {[%emt 0:00:45]} 40. Ke4 {[%emt 0:00:33]} f5+ {[%emt 0:02:04]} 41. Ke5 {[%emt 0:00:16]} Qe3+ {[%emt 0:00:38]} 42. Kd6 {[%emt 0:00:10]} Qd4+ {[%emt 0:01:13]} 43. Ke7 {[%emt 0:00:13]} Qe5+ {[%emt 0:01:23]} 44. Kd7 {[%emt 0:00:08]} Kf7 {[%emt 0:02:02]} 45. Qc7 {[%emt 0:03:37]} Qe6+ {[%emt 0:01:02]} 46. Kd8+ {[%emt 0:00:09]} Kf8 {[%emt 0:00:45]} 47. Qc5+ {[%emt 0:00:17]} Kg7 $2 {[%emt 0:00:25]} (47... Kg8 $11) 48. Qe7+ {[%emt 0:00:10]} Qf7 {[%emt 0:00:40]} 49. f4 {[%emt 0:00:18]} Kg8 {[%emt 0:00:23]} 50. Qxf7+ {[%emt 0:00:17]} Kxf7 {[%emt 0:00:04]} 51. Kd7 {[%emt 0:00:10]} Kf6 {[%emt 0:01:05]} 52. Kd6 {[%emt 0:00:23]} g5 {[%emt 0:00:20] [#]} 53. h4 $1 {[%emt 0:00:17]} g4 {[%emt 0:00:43]} 54. Kd5 {[%emt 0:00:09]} 1-0

[Event "World Chess Trophy 2018"]
[Site "Tenerife"]
[Date "2018.06.17"]
[Round "2"]
[White "Vespe, Francesco"]
[Black "Pumilia, Antonello"]
[Result "1-0"]
[ECO "D88"]
[WhiteElo "1853"]
[BlackElo "1375"]
[Annotator "NA RC"]
[PlyCount "85"]
[EventDate "2018.06.17"]
[EventType "swiss"]
[EventCountry "ESP"]
[SourceTitle "playchess.com"]
[Source "ChessBase"]
[SourceQuality "1"]
[TimeControl "5400+30"]

1. d4 {[%emt 0:00:00]} Nf6 {[%emt 0:00:37]} 2. c4 {[%emt 0:00:00]} g6 {[%emt 0:00:07]} 3. Nc3 {[%emt 0:00:00]} d5 {[%emt 0:00:27]} 4. cxd5 {[%emt 0:00:00]} Nxd5 {[%emt 0:00:11]} 5. e4 {[%emt 0:00:11]} Nxc3 {[%emt 0:00:08]} 6. bxc3 {[%emt 0:00:04]} Bg7 {[%emt 0:00:17]} 7. Be3 {[%emt 0:00:08]} O-O {[%emt 0:02:56]} 8. Bc4 {[%emt 0:00:12]} c5 {[%emt 0:03:24]} 9. Ne2 {[%emt 0:00:37]} Qa5 {[%emt 0:07:08]} 10. O-O {[%emt 0:00:38]} Nc6 {[%emt 0:07:59]} 11. Qc1 {[%emt 0:08:39]} cxd4 {[%emt 0:04:05]} 12. cxd4 {[%emt 0:00:32]} Rd8 {[%emt 0:10:31] D88: Grünfeldindisch (Abtauschvariante, Aljechin-Variante)} 13. Rd1 {[%emt 0:00:56]} Bg4 $146 {[%emt 0:01:19]} ({Vorgänger:} 13... Bd7 14. Rb1 Rab8 15. Rd3 a6 16. Rdb3 b5 17. Ra3 Qb6 18. Rd3 Qb7 19. Bg5 Rdc8 20. Qf4 bxc4 21. Rxb7 cxd3 22. Rxb8 Rxb8 {½-½ (33) Ledovski,A-Emami Eghdam,K Willingen 2001}) 14. f3 {[%emt 0:00:51]} Bd7 {[%emt 0:00:22]} 15. Rb1 {[%emt 0:01:39]} Qc7 {[%emt 0:08:31]} 16. Bf4 {[%emt 0:01:39]} Qc8 {[%emt 0:03:48]} 17. Qc3 {[%emt 0:17:15]} a6 {[%emt 0:10:59]} 18. Rbc1 {[%emt 0:08:50]} Be6 {[%emt 0:08:40]} 19. Bxe6 {[%emt 0:04:11]} Qxe6 {[%emt 0:02:50]} 20. Qd2 {[%emt 0:29:02]} Nxd4 {[%emt 0:02:15]} 21. Kf1 {[%emt 0:05:53]} Nc6 {[%emt 0:03:27]} 22. Qc2 {[%emt 0:00:48]} Be5 {[%emt 0:06:43]} 23. Qb1 {[%emt 0:02:21]} Rxd1+ {[%emt 0:06:28]} 24. Rxd1 {[%emt 0:00:07]} b5 {[%emt 0:01:04]} 25. Rc1 {[%emt 0:02:27] [#]} Rd8 $2 {[%emt 0:01:22] [#]} (25... Na5 $1 $19 26. Rd1 Nc4) 26. g3 $2 {[%emt 0:00:12]} (26. Rxc6 $1 $11 {[%mdl 512]} Qxc6 27. Bxe5) 26... Qh3+ {[%emt 0:02:04]} 27. Kg1 {[%emt 0:00:27]} Nd4 {[%emt 0:01:45]} 28. Nxd4 $19 {[%emt 0:01:21]} (28. Qd3 Nxe2+ 29. Qxe2 Bxf4 30. gxf4) 28... Bxd4+ {[%emt 0:00:08]} 29. Kh1 {[%emt 0:00:14]} Qh5 {[%emt 0:02:21]} 30. Kg2 {[%emt 0:03:56]} g5 {[%emt 0:00:13]} 31. Bc7 {[%emt 0:02:29]} Rd7 {[%emt 0:00:59]} 32. Qd3 {[%emt 0:03:30]} g4 {[%emt 0:00:01]} 33. f4 {[%emt 0:00:31]} Qh3+ {[%emt 0:01:41]} 34. Kh1 {[%emt 0:00:16]} Bg1 {[%emt 0:00:15]} 35. Qe2 {[%emt 0:01:28]} Rd3 {[%emt 0:00:23]} 36. Kxg1 {[%emt 0:00:40]} Rxg3+ {[%emt 0:00:13]} 37. hxg3 {[%emt 0:00:32]} Qxg3+ {[%emt 0:00:08]} 38. Kf1 {[%emt 0:01:11]} Qh3+ {[%emt 0:00:22]} 39. Ke1 {[%emt 0:02:24]} g3 {[%emt 0:00:14]} 40. Kd2 {[%emt 0:00:30]} g2 {[%emt 0:00:31]} 41. Qe3 {[%emt 0:01:18]} Qd7+ {[%emt 0:00:53]} 42. Ke2 {[%emt 0:00:19]} Qg4+ {[%emt 0:00:29]} 43. Kf2 {[%emt 0:00:23]} 1-0

[Event "World Chess Trophy 2018"]
[Site "Tenerife"]
[Date "2018.06.17"]
[Round "2"]
[White "Baez Luis, Adrian"]
[Black "Rutherford, William"]
[Result "1/2-1/2"]
[ECO "B13"]
[WhiteElo "1621"]
[BlackElo "1959"]
[Annotator "NA RC"]
[PlyCount "103"]
[EventDate "2018.06.17"]
[EventType "swiss"]
[EventCountry "ESP"]
[SourceTitle "playchess.com"]
[Source "ChessBase"]
[SourceQuality "1"]
[TimeControl "5400+30"]

1. e4 {[%emt 0:00:00]} c6 {[%emt 0:00:06]} 2. d4 {[%emt 0:00:07]} d5 {[%emt 0:00:10]} 3. exd5 {[%emt 0:00:11]} cxd5 {[%emt 0:00:06]} 4. Bd3 {[%emt 0:00:09]} Nc6 {[%emt 0:01:03]} 5. c3 {[%emt 0:01:24]} g6 {[%emt 0:01:20]} 6. Bf4 {[%emt 0:00:50]} Bg7 {[%emt 0:00:08]} 7. Nf3 {[%emt 0:00:18]} Nh6 {[%emt 0:00:16]} 8. O-O {[%emt 0:06:12]} O-O {[%emt 0:00:18]} 9. h4 $146 {[%emt 0:01:44] B13: Caro-Kann: Exchange Variation and Panov-Botvinnik Attack} ({Predecessor:} 9. Re1 Re8 10. Qd2 Nf5 11. Na3 a6 12. Nc2 f6 13. c4 dxc4 14. Bxc4+ Kh8 15. Rad1 b5 16. Bf7 Rf8 17. Be6 Bxe6 18. Rxe6 {½-½ (34) Singer,C (2401)-Bayer,B (2411) Austria 2018}) 9... Nf5 {[%emt 0:08:27]} 10. h5 {[%emt 0:02:10]} Nd6 {[%emt 0:03:17]} 11. Nbd2 {[%emt 0:03:38]} Bf5 {[%emt 0:05:28]} 12. Qe2 {[%emt 0:01:33]} Bxd3 {[%emt 0:03:43]} 13. Qxd3 {[%emt 0:00:06]} a6 {[%emt 0:04:06]} 14. g3 {[%emt 0:01:15]} Rc8 {[%emt 0:03:15]} 15. Kg2 {[%emt 0:01:23]} Nc4 {[%emt 0:02:58]} 16. hxg6 {[%emt 0:02:06]} hxg6 {[%emt 0:00:21]} 17. Nxc4 {[%emt 0:01:28]} dxc4 {[%emt 0:00:06]} 18. Qe3 {[%emt 0:00:17]} e6 {[%emt 0:14:33]} 19. Rh1 {[%emt 0:01:19]} Ne7 {[%emt 0:01:49]} 20. Bg5 {[%emt 0:12:01]} Nf5 {[%emt 0:03:53]} 21. Qe2 {[%emt 0:02:29]} Qd5 {[%emt 0:03:12]} 22. g4 {[%emt 0:01:19]} Nd6 {[%emt 0:02:33]} 23. Bh6 {[%emt 0:00:50]} Qe4 {[%emt 0:03:48]} 24. Qxe4 {[%emt 0:00:54]} Nxe4 {[%emt 0:00:06]} 25. g5 {[%emt 0:01:20]} Rfd8 {[%emt 0:06:19]} 26. Rh4 {[%emt 0:01:19]} Nd6 {[%emt 0:04:26]} 27. Rah1 {[%emt 0:00:25]} b5 {[%emt 0:05:25]} 28. Bxg7 {[%emt 0:02:30]} Kxg7 {[%emt 0:00:09]} 29. Ne5 {[%emt 0:00:26]} ({White should play} 29. Rh7+ $18 Kf8 30. Ne5) 29... Rh8 {[%emt 0:04:37]} 30. Rxh8 {[%emt 0:02:00]} Rxh8 {[%emt 0:00:04]} 31. Rxh8 {[%emt 0:00:23]} Kxh8 {[%emt 0:00:02]} 32. Kf3 {[%emt 0:00:53]} Kg7 {[%emt 0:00:20]} 33. Nd7 {[%emt 0:00:28]} a5 {[%emt 0:03:01]} 34. a3 {[%emt 0:04:10]} Nf5 {[%emt 0:04:40]} 35. Ke4 {[%emt 0:02:15]} Ne7 {[%emt 0:01:37]} 36. Ke5 {[%emt 0:01:53]} Nd5 {[%emt 0:00:52]} 37. Kd6 {[%emt 0:16:21]} b4 {[%emt 0:02:52]} 38. axb4 {[%emt 0:00:21]} axb4 {[%emt 0:00:13]} 39. cxb4 {[%emt 0:00:13]} Nxb4 {[%emt 0:00:16]} 40. Kc5 $2 {[%emt 0:00:11]} (40. Ne5 $18) 40... Nd3+ {[%emt 0:00:26]} 41. Kxc4 {[%emt 0:00:12]} Nxb2+ {[%emt 0:00:16]} 42. Kb3 {[%emt 0:02:37]} Nd3 {[%emt 0:01:47]} 43. f3 {[%emt 0:00:15]} Nf4 $11 {[%emt 0:01:03]} 44. Nf6 {[%emt 0:02:24]} Nh3 {[%emt 0:01:33]} 45. Ne4 {[%emt 0:00:57]} Ng1 {[%emt 0:01:05]} 46. Nd2 {[%emt 0:00:36]} f5 {[%emt 0:01:39]} 47. gxf6+ {[%emt 0:00:50]} Kxf6 {[%emt 0:00:06]} 48. Kc4 {[%emt 0:02:21]} Kf5 {[%emt 0:00:25]} 49. d5 {[%emt 0:01:27]} exd5+ {[%emt 0:00:13]} 50. Kxd5 {[%emt 0:00:07]} Kf4 {[%emt 0:01:18]} 51. Ke6 {[%emt 0:00:33]} Nxf3 {[%emt 0:06:14]} 52. Nxf3 {[%emt 0:24:50] Kxf3Kf6*} 1/2-1/2